Cogmind - Beta 11 X6 @@@ ROGUE MODE // 2021.08.10 @ 21:40:30 Player: Olga Result: Destroyed by D-53 Grenadier with Mini Grenade Launcher Performance ------------- Evolutions (0) 0 Regions Visited (2) 400 Robots Destroyed (17) 85 Value Destroyed (218) 218 Prototype IDs (0) 0 Alien Tech Used (0) 0 Bonus (0) 0 TOTAL SCORE: 703 Bonus ------- None Cogmind --------- Core Integrity 0/250 Matter 282/300 Energy 248/250 System Corruption 2% Temperature Cool (0) Movement Rolling (100) Location -10/Mines Parts ------- > --- POWER (1) -------- Ion Engine > --- PROPULSION (2) --- Compact Wheel > --- UTILITY (2) ------ Medium Storage Unit > --- WEAPON (2) ------- (None) > --- INVENTORY (10) --- Ion Engine Light Ion Engine Aluminum Leg Carbon-fiber Leg ECM Suite Light Assault Rifle Light Assault Rifle Light Assault Rifle Peak State ------------ > --- POWER ------------ Light Ion Engine > --- PROPULSION ------- Aluminum Leg Aluminum Leg > --- UTILITY ---------- Medium Storage Unit Light Armor Plating > --- WEAPON ----------- Assault Rifle Assault Rifle > --- INVENTORY -------- Ion Engine Ion Engine Aluminum Leg Carbon-fiber Leg Wheel Compact Wheel ECM Suite Light Assault Rifle Light Assault Rifle Light Assault Rifle [Rating: 8] Favorites ----------- Power Light Ion Engine Engine Light Ion Engine Propulsion Aluminum Leg Leg Aluminum Leg Wheel Wheel Utility Medium Storage Unit Storage Medium Storage Unit Protection Light Armor Plating Weapon Assault Rifle Energy Gun Medium Laser Ballistic Gun Assault Rifle Build | -11 -10 -10 ------- Run | Scr Mat Min Slots Evolved . | . . . Power . | . . . Propulsion . | . . . Utility . | . . . Weapon . | . . . Parts Attached 10 | . 3 7 Power 2 | . 1 1 Engine 2 | . 1 1 Core . | . . . Reactor . | . . . Propulsion 4 | . . 4 Treads . | . . . Leg 2 | . . 2 Wheel 2 | . . 2 Hover . | . . . Flight . | . . . Utility 2 | . 1 1 Device . | . . . Storage 1 | . 1 . Processor . | . . . Hackware . | . . . Protection 1 | . . 1 Artifact . | . . . Weapon 2 | . 1 1 Energy Gun . | . . . Energy Cannon . | . . . Ballistic Gun 2 | . 1 1 Ballistic Cannon . | . . . Launcher . | . . . Special Weapon . | . . . Impact Weapon . | . . . Slashing Weapon . | . . . Piercing Weapon . | . . . Special Melee Weapon . | . . . Unidentified Prototypes . | . . . Parts Lost 9 | . 1 8 Power 1 | . . 1 Propulsion 4 | . 1 3 Utility 1 | . . 1 Weapon 3 | . . 3 Highest Loss Streak 4 | . 1 4 Average Slot Usage (%) 83 | . 84 82 Engine 11 | . 14 10 Leg 25 | . 27 24 Wheel 2 | . . 3 Storage 14 | . 14 14 Protection 3 | . . 5 Energy Gun 1 | . 4 . Ballistic Gun 24 | . 23 24 Naked Turns . | . . . Heaviest Build 20 | 14 17 20 Greatest Support 26 | 20 20 26 Greatest Overweight (x) 1 | . 1 1 Average Overweight (x) . | . . . Largest Inventory Capacity 10 | . 10 10 Average Capacity 9 | . 8 10 Most Carried 10 | . 10 10 Average Carried 8 | . 7 9 Final Capacity 10 | 8 10 10 Final Carried 10 | 6 10 8 Class Distribution -------------------- 100% | Mutant Dominant Class ---------------- Mutant | -10/Materials Mutant | -10/Mines Resources | -11 -10 -10 ----------- Run | Scr Mat Min Matter Collected 486 | 200 128 158 Remotely . | . . . Salvage Created 318 | . 186 132 Parts 32 | . 17 15 Haulers Intercepted . | . . . Recyclers Shooed . | . . . Parts Field Recycled . | . . . Retrieved Matter . | . . . Parts Self-Destructed . | . . . Prevented . | . . . Kills | -11 -10 -10 ------- Run | Scr Mat Min Combat Hostiles Destroyed 17 | . 8 9 Guns 17 | . 8 9 Classes Destroyed 2 | . 2 . Swarmer 15 | . 6 9 Grunt 2 | . 2 . Best Kill Streak 7 | . 7 3 Combat Bots Only 7 | . 7 3 Max Kills in Single Turn 1 | . 1 1 Gunslinging . | . . . Exploded . | . . . Melee . | . . . Uniques/NPCs Destroyed . | . . . Combat | -11 -10 -10 -------- Run | Scr Mat Min Damage Taken 1151 | . 402 749 Core 264 | . 54 210 Absorbed by Shields . | . . . Core Remaining (%) 100 | 100 . . Volleys Fired 46 | . 18 28 Largest 2 | . 2 2 Hottest 40 | . 40 40 Shots Fired 89 | . 36 53 Gun 89 | . 36 53 Cannon . | . . . Launcher . | . . . Special . | . . . Kinetic 89 | . 36 53 Thermal . | . . . Explosive . | . . . Electromagnetic . | . . . Robot Hit Streak 7 | . 7 4 Robot Miss Streak 7 | . 3 7 Penetration Max . | . . . Secondary Targets 3 | . 1 2 Max Gunslinging Chain 1 | . 1 1 Shots Hit Robots 48 | . 23 25 Core Hits 21 | . 10 11 Critical Kills . | . . . Critical Parts Destroyed . | . . . Critical Strikes . | . . . Melee Attacks . | . . . Impact . | . . . Slashing . | . . . Piercing . | . . . Sneak Attacks . | . . . Combat Hostiles . | . . . Follow-up Attacks . | . . . Damage Inflicted 618 | . 315 303 Guns 618 | . 315 303 Cannons . | . . . Explosions . | . . . Melee . | . . . Ramming . | . . . Kinetic 618 | . 315 303 Thermal . | . . . Explosive . | . . . Electromagnetic . | . . . Impact . | . . . Slashing . | . . . Piercing . | . . . Highest Corruption 2 | . . 2 Average Corruption 2 | . . 2 Corruption Purged . | . . . Effects 1 | . . 1 Message Errors 1 | . . 1 Overload Shots . | . . . Overflow Damage . | . . . Projectiles . | . . . Explosions . | . . . Melee . | . . . Knockbacks . | . . . Impact . | . . . Kinetic . | . . . Secondary . | . . . Self-Inflicted Damage . | . . . Shots . | . . . Rammed . | . . . Targets Rammed . | . . . Kicked . | . . . Crushed . | . . . Highest Temperature . | . . . Average Temperature . | . . . Received Heat Transfer 75 | . 66 9 Siege Activations . | . . . Robots Corrupted . | . . . Combat Hostiles . | . . . Parts Fried . | . . . Impact Corruptions . | . . . Robots Melted . | . . . Combat Hostiles . | . . . Parts Melted . | . . . Heat Transferred . | . . . Parts Sabotaged . | . . . Parts Stolen . | . . . Parts Stripped . | . . . Power Chain Reactions . | . . . Missiles Intercepted . | . . . Alert | -11 -10 -10 ------- Run | Scr Mat Min Peak Influence 383 | . 383 272 Initial 145 | . . 145 Average 180 | . 212 164 Maximum Alert Level 1 | . 1 1 Low Security (%) 70 | . 45 83 Level 1 29 | . 54 16 Level 2 . | . . . Level 3 . | . . . Level 4 . | . . . Level 5 . | . . . High Security . | . . . Max Security . | . . . Squads Dispatched 2 | . 2 . Investigation 1 | . 1 . Extermination . | . . . Reinforcement 1 | . 1 . Assault . | . . . Garrison . | . . . Intercept . | . . . Construction Impeded . | . . . Haulers Reinforced . | . . . Active Scanning Responses . | . . . Cargo Convoy Interrupts . | . . . Stealth | -11 -10 -10 --------- Run | Scr Mat Min Distress Signals . | . . . Communications Jammed . | . . . Distress Signals . | . . . Times Spotted 49 | . 20 29 Peak Tracking Total 14 | . 5 14 Tactical Retreats 4 | . 3 1 Traps | -11 -10 -10 ------- Run | Scr Mat Min Traps Triggered . | . . . Indirectly . | . . . Trap Hack Attempts . | . . . Triggered . | . . . Disarmed . | . . . Reprogrammed . | . . . Reused . | . . . Traps Extracted . | . . . Installed . | . . . Triggered . | . . . Machines | -11 -10 -10 ---------- Run | Scr Mat Min Machines Disabled . | . . . Max in Single Turn . | . . . Machines Sabotaged . | . . . Garrisons Compromised . | . . . Overloaded Fab Kills . | . . . Fab Network Shutdowns . | . . . Hacking | -11 -10 -10 --------- Run | Scr Mat Min Machines Accessed 4 | . 3 1 Terminals 2 | . 1 1 Fabricators . | . . . Repair Stations 1 | . 1 . Recycling Units 1 | . 1 . Scanalyzers . | . . . Garrison Access . | . . . Total Hacks 8 | . 5 3 Successful 3 | . 2 1 Failed 5 | . 3 2 Catastrophic 2 | . 1 1 Database Lockouts . | . . . Manual 5 | . 2 3 Terminals 6 | . 3 3 Fabricators . | . . . Repair Stations 1 | . 1 . Recycling Units 1 | . 1 . Scanalyzers . | . . . Garrison Access . | . . . Terminal Hacks 1 | . . 1 Zone Layout 1 | . . 1 Fabricator Hacks . | . . . Repair Station Hacks . | . . . Recycling Unit Hacks . | . . . Scanalyzer . | . . . Garrison Access Hacks . | . . . Unauthorized Hacks 2 | . 2 . Terminals . | . . . Fabricators . | . . . Repair Stations 1 | . 1 . Mechanics 1 | . 1 . Recycling Units 1 | . 1 . Tunnel 1 | . 1 . Scanalyzers . | . . . Garrison Access . | . . . Data Cores Recovered . | . . . Used . | . . . Hacking Detections 2 | . 1 1 Full Trace Events 1 | . 1 . Feedback Events . | . . . Feedback Blocked . | . . . Robot Schematics Acquired . | . . . Robots Built . | . . . Matter . | . . . Time . | . . . Total Robot Build Rating . | . . . Part Schematics Acquired . | . . . Parts Built . | . . . Matter . | . . . Time . | . . . Total Part Build Rating . | . . . Parts Repaired . | . . . Time . | . . . Parts Recycled . | . . . Recycled Matter . | . . . Retrieved Matter . | . . . Retrieved Components . | . . . Parts Scanalyzed . | . . . Part Schematics Acquired . | . . . Parts Damaged . | . . . Bothacking | -11 -10 -10 ------------ Run | Scr Mat Min Used RIF Installer . | . . . Robots Hacked . | . . . Non-combat . | . . . Combat . | . . . Robot Hacks Applied . | . . . Relay Couplers Released . | . . . Robots Rewired . | . . . Allies Hacked . | . . . Hacks Repelled . | . . . Allies | -11 -10 -10 -------- Run | Scr Mat Min Total Allies 2 | . . 2 Largest Group 2 | . . 2 Highest-Rated Group 42 | . . 42 Highest-Rated Ally 31 | . . 31 Total Orders . | . . . Ally Attacks 7 | . . 7 Total Damage 40 | . . 40 Kills . | . . . Allies Corrupted . | . . . Allies Melted . | . . . Intel | -11 -10 -10 ------- Run | Scr Mat Min Robot Analysis Total . | . . . Derelict Logs Recovered 2 | . . 2 Drone Launches . | . . . Drone Recoveries . | . . . Exploration | -11 -10 -10 ------------- Run | Scr Mat Min Turns Passed 947 | . 316 631 Spaces Moved 656 | 1 194 461 Core . | . . . Treads . | . . . Legs 580 | 1 194 385 Wheels 76 | . . 76 Hover . | . . . Flight . | . . . Fastest Speed 90 | 120 120 90 Average Speed 117 | 120 122 115 Slowest Speed 200 | 120 200 200 Overloaded Moves . | . . . Propulsion Burnouts . | . . . Robots Hopped . | . . . Cave-ins Triggered . | . . . Exploration Rate (%) 41 | 1 35 88 Regions Visited 2 Branch Regions 1 Pre-discovered Areas 2 | . 1 1 Known Exits Taken . | . . . Unknown Exits Taken 2 | 1 1 . Scrap Searched 1 | . . 1 Spaces Dug . | . . . Terrain Destroyed . | . . . Melee . | . . . Projectile . | . . . AOE . | . . . Terrain Rammed . | . . . Walls Destroyed . | . . . Machines Disabled . | . . . Actions | -11 -10 -10 --------- Run | Scr Mat Min Total 747 | . 240 507 Wait 17 | . 9 8 Move 654 | . 193 461 Hop . | . . . Pick Up 13 | . 10 3 Fast Attach 2 | . 1 1 Attach 5 | . . 5 Detach . | . . . Swap 3 | . 2 1 Drop 7 | . 7 . Fire 46 | . 18 28 Melee . | . . . Ram . | . . . Kick . | . . . Crush . | . . . Escape Stasis . | . . . Rewire . | . . . Trap . | . . . Miscellaneous . | . . . Route ------- -11/Scrapyard -10/Materials -10/Mines (discovered 2 exits: [*Mat x2]) History --------- Turn | Location | Event 1 | -11/Scrapyard | Discovered new exit (range 0) 1 | -11/Scrapyard | Entered Materials 198 | -10/Materials | Destroyed 7 combat bots 307 | -10/Materials | Discovered new exit (range 6) 317 | -10/Materials | Entered Mines 338 | -10/Mines | Build established: Mutant 455 | -10/Mines | Learned 2 Materials zone layouts 509 | -10/Mines | Learned location of Storage (-7) 607 | -10/Mines | Discovered new exit (range 9) 706 | -10/Mines | Discovered new exit (range 3) 767 | -10/Mines | Lost 4 parts (1p1n1u1w) 847 | -10/Mines | Assembled infested the area 874 | -10/Mines | Core integrity fell below 50% 914 | -10/Mines | Lost 3 parts (1n2w) 947 | -10/Mines | Core integrity fell below 20% 948 | -10/Mines | Destroyed by D-53 Grenadier with Mini Grenade Launcher Last Messages --------------- 00868_ K-01 Serf system corrupted by crushing effect. 00868_ K-01 Serf destroyed. 00870_ as-04184 destroyed. 00870_ as-81798 destroyed. 00870_ as-11515 destroyed. 00870_ as-36899 destroyed. 00873_ as-81778 destroyed. 00873_ as-29816 destroyed. 00873_ as-38241 destroyed. 00877_ Lgt. Assault Rifle destroyed. 00883_ Assault Rifle destroyed. 00887_ as-28905 destroyed. 00890_ U-05 Engineer lays Concrete. 00896_ 9MZW28 /SJQT#C/70:UPGO46Y1Z5M6E#H 00898_ Acquired 12 matter. 00900_ Acquired Lgt. Ion Engine. 00901_ Acquired 11 matter. 00902_ Acquired 19 matter. 00938_ Core Extractor disabled. 00948_ Wheel destroyed. Map ----- +----------------------------------------------------+ | | | | | | | | | | | | | ?????????????????????????????????????????????????? | | ?????????????????????????????????????????????????? | | ??????????????????????????????????????????????#### | | ??????????????????#######????????????????????## | | ?????????????????## ##??????????????????## | | ?????????????????# #?????????????????## | | ?????????????????# ##?????????????#### | | ?????????????????## ###??????????## | | ??????????????????## ############ | | ???????????????????## """ | | ????????????????????## """ | | ?????????????????????## ########### """ ### | | ???##################?# ##?????????## #?? | | ???# ### #??????????## # #?? | | ???# """ " " """ ## ##??????????## # #?? | | ???# """ """ """ #???????????#### #?? | | ???# """ """ """ ##?????????????# #?? | | ???# ### #?????????????# #?? | | ???# """ """ """ #?# ##?????????????# ### | | ???# """ """ """ #?# @ #????????###??# | | ???# """ """ """ #?# dd #???????## ### | | ???# #?#### ###???????? ####### | | ???# """ """ """ #????#= #??????????? #????? | | ???# """ """ """ #????# #???????????# ##???? | | ???# """ """ """ #????# #??????????## ##??? | | ???# ? #????# #?????????## #??? | | ???# ? #???## #???????### #??? | | ???# ? ? #??## #??????## ##?? | | ???####?###?#########??# #####??# #?? | | ???????????## ?????????# #### ### | | ???????????# #####????# % ## | | ???????????# #??## | | ???????????# ### ## ### | | ???????????# #### ## ##?# | | ???????????## ##??#####= ####??? | | ????????????# ###???????#% ###### #?????? | | ????????????# #?????????#%[#????# #?????? | | ????????????## #?????????# #????# #?????? | | ?????????????## ##????###### #????# #?????? | | ??????????????### ##?????# ? #????# #?????? | | ????????????????## #####??# ###### #?????? | | ????????????????? # ##?# ###### #?????? | | ???????????????? #?# #????# ####= #?????? | | ???????????????? ### ##???# #??#%=####### | +----------------------------------------------------+ Best States ------------- Heat Dissipation 25 Energy Generation 10 Energy Capacity 250 Matter Stores 300 Matter Capacity 300 Sight Range 16 Terrain Scan Density 10 Armor Coverage 150 Evasion (%) 55 Item Schematics ----------------- None Robot Schematics ------------------ None Fabricated ------------ Nothing Alien Tech Used ----------------- None Achievements -------------- None Challenges ------------ None Game ------ Seed PortableGravmagClaws Manual? 0 Play Time 00:11:59 Cumulative 58.8 hours Start 2021.08.10 @ 21:25:18 End 2021.08.10 @ 21:40:30 Sessions 1 Manual Loads 0 Difficulty Rogue Special Mode None Game No. 71 Rogue 71 Adventurer 0 Explorer 0 Win Type - Total 0 Types 0/0/0/0/0/0/0/0/0 Lore% 48 Gallery% 43 Achievement% 37 Wizard Run 0 Options --------- ASCII 1 Keyboard 0 Movement Vi Keybinds 0 Fullscreen 2 Font 18/SmallcapsGlow Map View 76x50 Tactical HUD 1 Map Filters NONE Filters NONE Steam 1 RUN: 2cf81a57-6236-456b-9938-3d18318ed754